bitfinex/quotes_BTCUSD_20250224
["timestamp","ask_amount","ask_price","bid_price","bid_amount"]
[1740415044093,0.15,94887.0,94884.0,0.001]
[1740415044411,0.158086,94885.0,94884.0,0.001]
[1740415044729,0.158115,94868.0,94863.0,0.31939927]
[1740415044934,0.158119,94865.0,94864.0,0.10264569]
[1740415045165,0.158118,94866.0,94864.0,0.10264569]
[1740415045364,0.15811,94871.0,94864.0,0.10264569]
[1740415045944,0.158106,94874.0,94864.0,0.10264569]
[1740415046324,0.158106,94873.0,94864.0,0.10264569]
[1740415046555,0.158104,94874.0,94864.0,0.10264569]
[1740415047061,0.158117,94867.0,94864.0,0.10264569]
[1740415047341,0.15,94895.0,94864.0,0.42604496]
[1740415047525,0.158119,94865.0,94864.0,0.32339927]
[1740415047865,0.16492773,94865.0,94864.0,0.32339927]
[1740415048153,0.16492773,94865.0,94864.0,0.31939927]
[1740415048344,0.16492773,94865.0,94864.0,0.32539927]
[1740415048922,0.18641733,94865.0,94864.0,0.32539927]
[1740415049677,0.18641733,94865.0,94864.0,0.32639927]
[1740415049878,0.18641733,94865.0,94864.0,0.33039927]
[1740415050307,0.18641733,94865.0,94864.0,0.32339927]
[1740415050462,0.18641733,94865.0,94864.0,0.33039927]
[1740415052173,0.16492773,94865.0,94864.0,0.33039927]
[1740415053254,0.16492773,94865.0,94864.0,0.33124887]
[1740415053681,0.18637939,94865.0,94864.0,0.33124887]
[1740415054039,0.16492773,94865.0,94864.0,0.33124887]
[1740415054874,0.18543485,94865.0,94864.0,0.33124887]
[1740415061650,0.33543485,94865.0,94864.0,0.0118496]
[1740415062612,0.41213485,94865.0,94864.0,0.0118496]
[1740415064002,0.33543485,94865.0,94864.0,0.0118496]
[1740415066902,0.59668813,94865.0,94864.0,6e-07]
[1740415067041,0.308126,94861.0,94860.0,6e-07]
[1740415067491,0.41668477,94861.0,94860.0,6e-07]
[1740415067766,0.51933046,94861.0,94860.0,6e-07]
[1740415068337,0.43131211,94861.0,94860.0,6e-07]
[1740415068556,0.15,94857.0,94849.0,8e-07]
[1740415068743,0.158164,94838.0,94836.0,0.0008491]
[1740415069228,0.16400273,94838.0,94836.0,0.0008491]
[1740415069434,0.31400273,94838.0,94836.0,0.0008491]
[1740415069972,0.31400273,94838.0,94837.0,0.0048491]
[1740415070696,0.39290273,94838.0,94837.0,0.0048491]
[1740415071478,0.39290273,94838.0,94837.0,0.0038491]
[1740415071864,0.39290273,94838.0,94837.0,0.0008491]
[1740415072174,0.39290273,94838.0,94837.0,0.0018491]
[1740415072419,0.57307252,94838.0,94837.0,1e-07]
[1740415072638,0.308166,94837.0,94836.0,0.0008491]
[1740415072844,0.41081169,94837.0,94836.0,0.0008491]
[1740415073054,0.41663243,94837.0,94836.0,0.0008491]
[1740415075746,0.31398674,94837.0,94836.0,0.0008491]
[1740415076587,0.41368571,94837.0,94836.0,0.0008491]
[1740415076931,0.308174,94832.0,94831.0,1e-07]
[1740415077355,0.31396624,94832.0,94831.0,1e-07]
[1740415077513,0.41661193,94832.0,94831.0,1e-07]
[1740415077698,0.43115278,94832.0,94831.0,1e-07]
[1740415077910,0.308189,94823.0,94822.0,0.0008098]
[1740415078120,0.386489,94823.0,94822.0,0.0008098]
[1740415078320,0.39225036,94823.0,94822.0,0.00124273]
[1740415079009,0.44185036,94823.0,94822.0,0.00124273]
[1740415079255,0.44185036,94823.0,94807.0,0.0008491]
[1740415079256,0.308214,94808.0,94807.0,0.0008491]
[1740415079962,0.31388084,94808.0,94807.0,0.0008491]
[1740415080413,0.33284757,94808.0,94807.0,0.0008491]
[1740415081613,0.33484757,94808.0,94807.0,0.0008491]
[1740415081824,0.33284757,94808.0,94807.0,0.0008491]
[1740415082241,0.02663357,94808.0,94807.0,0.0008491]
[1740415082452,0.18484757,94808.0,94807.0,0.0008491]
[1740415082919,0.18784757,94808.0,94807.0,0.0008491]
[1740415083429,0.18484757,94808.0,94807.0,0.0008491]
[1740415083617,0.18684757,94808.0,94807.0,0.0008491]
[1740415083816,0.18484757,94808.0,94807.0,0.0008491]
[1740415084623,0.18684757,94808.0,94807.0,0.0008491]
[1740415084829,0.18484757,94808.0,94807.0,0.0008491]
[1740415085035,0.18284757,94808.0,94807.0,0.0008491]
[1740415085235,0.18484757,94808.0,94807.0,0.0008491]
[1740415085483,0.18684757,94808.0,94807.0,0.0008491]
[1740415085875,0.22486329,94808.0,94807.0,0.0008491]
[1740415086074,0.22286329,94808.0,94807.0,0.0008491]
[1740415086320,0.22486329,94808.0,94807.0,0.0008491]
[1740415086939,0.18684757,94808.0,94807.0,0.0008491]
[1740415087076,0.18484757,94808.0,94807.0,0.0008491]
[1740415087665,0.18684757,94808.0,94807.0,0.0008491]
[1740415088688,0.28949326,94808.0,94807.0,1e-07]
[1740415088900,0.28949326,94808.0,94800.0,7e-05]
[1740415088901,0.158241,94792.0,94791.0,0.0004]
[1740415089273,0.16316841,94792.0,94791.0,0.0004]
[1740415090188,0.16316841,94792.0,94791.0,0.00052979]
[1740415091111,0.16816841,94792.0,94791.0,0.00052979]
[1740415091768,0.17316841,94792.0,94791.0,0.00052979]
[1740415095301,0.32316841,94792.0,94791.0,0.00052979]
[1740415097448,0.31316841,94792.0,94791.0,0.00052979]
[1740415097672,0.32216841,94792.0,94791.0,0.00052979]
[1740415097877,0.31816841,94792.0,94791.0,0.00052979]
[1740415098285,0.31616841,94792.0,94791.0,0.00052979]
[1740415098495,0.31916841,94792.0,94791.0,0.00052979]
[1740415102335,0.31916841,94792.0,94791.0,0.00138029]
[1740415103931,0.41437945,94792.0,94791.0,0.00138029]
[1740415104078,0.51702514,94792.0,94791.0,0.00138029]
[1740415105084,0.56512514,94792.0,94791.0,0.00138029]
[1740415106445,0.4699141,94792.0,94791.0,0.00138029]
[1740415111095,0.48445495,94792.0,94791.0,2.9e-07]
[1740415118209,0.56525495,94792.0,94791.0,2.9e-07]
[1740415120016,0.56225495,94792.0,94791.0,2.9e-07]
[1740415120220,0.56625495,94792.0,94791.0,2.9e-07]
[1740415120435,0.57325495,94792.0,94791.0,2.9e-07]
[1740415120622,0.61524616,94792.0,94791.0,2.9e-07]
[1740415120991,0.60824616,94792.0,94791.0,2.9e-07]
[1740415121332,0.61524616,94792.0,94791.0,2.9e-07]
[1740415125989,0.57325495,94792.0,94791.0,2.9e-07]
[1740415126396,0.57495595,94792.0,94791.0,2.9e-07]
[1740415127261,0.44605595,94792.0,94791.0,2.9e-07]
[1740415129184,0.308269,94775.0,94774.0,1e-06]
[1740415129390,0.41091469,94775.0,94774.0,0.00013083]
[1740415129719,0.43908247,94775.0,94774.0,0.00013083]
[1740415129898,0.308277,94770.0,94769.0,5.1e-07]
[1740415130074,0.42546354,94770.0,94769.0,5.1e-07]
[1740415130243,0.43027624,94770.0,94769.0,5.1e-07]
[1740415130759,0.3130897,94770.0,94769.0,5.1e-07]
[1740415131179,0.3180897,94770.0,94769.0,5.1e-07]
[1740415131504,0.3210897,94770.0,94769.0,5.1e-07]
[1740415133180,0.3160897,94770.0,94769.0,5.1e-07]
[1740415133324,0.3190897,94770.0,94769.0,5.1e-07]
[1740415133524,0.41430737,94770.0,94769.0,5.1e-07]
[1740415134752,0.3190897,94770.0,94769.0,5.1e-07]
[1740415141550,0.3190897,94770.0,94769.0,0.08080051]
[1740415141759,0.0108127,94770.0,94769.0,0.13020051]
[1740415141962,0.006,94770.0,94769.0,0.13020051]
[1740415142697,0.16543268,94770.0,94769.0,0.13020051]
[1740415142910,0.16643268,94770.0,94769.0,0.13020051]
[1740415143272,0.16343268,94770.0,94769.0,0.13020051]
[1740415143593,0.16443268,94770.0,94769.0,0.13020051]
[1740415143999,0.16243268,94770.0,94769.0,0.13020051]
[1740415144555,0.16243268,94770.0,94769.0,5.1e-07]
[1740415145517,0.31243268,94770.0,94769.0,5.1e-07]
[1740415146853,0.31443268,94770.0,94769.0,5.1e-07]
[1740415147309,0.31243268,94770.0,94769.0,5.1e-07]
[1740415147513,0.31443268,94770.0,94769.0,5.1e-07]
[1740415148522,0.31643268,94770.0,94769.0,5.1e-07]
[1740415148894,0.31643268,94770.0,94769.0,0.12910051]
[1740415149097,0.31443268,94770.0,94769.0,0.12910051]
[1740415149614,0.31243268,94770.0,94769.0,0.12910051]
[1740415149821,0.00415568,94770.0,94769.0,0.12910051]
[1740415150063,0.00585708,94770.0,94769.0,0.12910051]
[1740415150264,0.0017014,94770.0,94769.0,0.12910051]
[1740415150468,0.00586227,94770.0,94769.0,0.12910051]
[1740415150677,0.0017014,94770.0,94769.0,0.12910051]
[1740415150874,0.16413927,94770.0,94769.0,0.12910051]
[1740415151103,0.00586227,94770.0,94769.0,0.12910051]
[1740415151525,0.16413927,94770.0,94769.0,0.12910051]
[1740415151952,0.00586227,94770.0,94769.0,0.12910051]
[1740415154418,0.0017014,94770.0,94769.0,0.12910051]
[1740415154829,0.00590807,94770.0,94769.0,0.12910051]
[1740415155082,0.0017014,94770.0,94769.0,0.12910051]
[1740415155467,0.00590807,94770.0,94769.0,0.12910051]
[1740415155659,0.0017014,94770.0,94769.0,0.12910051]
[1740415155935,0.0017014,94770.0,94769.0,0.2317462]
[1740415156136,0.0017014,94770.0,94769.0,0.3900252]
[1740415156358,0.0017014,94770.0,94769.0,0.2317462]
[1740415157073,0.00591577,94770.0,94769.0,0.2317462]
[1740415157256,0.0017014,94770.0,94769.0,0.2317462]
[1740415157442,0.00591577,94770.0,94769.0,0.2317462]
[1740415157640,0.0017014,94770.0,94769.0,0.2317462]
[1740415158255,0.0017014,94770.0,94769.0,0.2327462]
[1740415158458,0.0017014,94770.0,94769.0,0.13010051]
[1740415158665,0.16419277,94770.0,94769.0,0.00100051]
[1740415158862,0.16419277,94770.0,94769.0,5.1e-07]
[1740415159087,0.16419277,94770.0,94769.0,0.00100051]
[1740415159918,0.16419277,94770.0,94769.0,5.1e-07]
[1740415160325,0.16419277,94770.0,94769.0,0.00200051]
[1740415160773,0.39392155,94770.0,94769.0,0.00200051]
[1740415160968,0.52572155,94770.0,94769.0,5.1e-07]
[1740415161188,0.63036724,94770.0,94769.0,5.1e-07]
[1740415161958,0.308302,94755.0,94754.0,0.0008495]
[1740415162120,0.308302,94755.0,94754.0,0.00091809]
[1740415162326,0.31246902,94755.0,94754.0,0.00091809]
[1740415163182,0.31346902,94755.0,94754.0,0.00091809]
[1740415163767,0.31446902,94755.0,94754.0,0.00091809]
[1740415163968,0.33185481,94755.0,94754.0,0.00091809]
[1740415170527,0.18185481,94755.0,94754.0,0.00091809]
[1740415174837,0.18355661,94755.0,94754.0,0.00091809]
[1740415182580,0.02525461,94755.0,94754.0,0.00091809]
[1740415182931,0.02525461,94755.0,94754.0,0.18516378]
[1740415182932,0.00786882,94755.0,94754.0,0.18516378]
[1740415183134,0.00786882,94755.0,94754.0,0.50456305]
[1740415183338,0.0037018,94755.0,94754.0,0.50456305]
[1740415183665,0.0068589,94755.0,94754.0,0.50456305]
[1740415183870,0.0058589,94755.0,94754.0,0.50456305]
[1740415184488,0.0017018,94755.0,94754.0,0.50456305]
[1740415184690,0.0058589,94755.0,94754.0,0.50456305]
[1740415184890,0.0017018,94755.0,94754.0,0.50456305]
[1740415185089,0.0058589,94755.0,94754.0,0.50456305]
[1740415185298,0.0017018,94755.0,94754.0,0.50456305]
[1740415186009,0.0058589,94755.0,94754.0,0.50456305]
[1740415187097,0.0058589,94755.0,94754.0,0.66286705]
[1740415187483,0.0017018,94755.0,94754.0,0.66286705]
[1740415192251,0.0017018,94755.0,94754.0,0.50456305]
[1740415192446,0.1600038,94755.0,94754.0,0.42296305]
[1740415192846,0.16358701,94755.0,94754.0,0.42296305]
[1740415193063,0.16358701,94755.0,94754.0,0.32031736]
[1740415195151,0.16358701,94755.0,94754.0,0.00091809]
[1740415199515,0.00528501,94755.0,94754.0,0.00091809]
[1740415199721,0.16358701,94755.0,94754.0,0.00091809]
[1740415201865,0.00528501,94755.0,94754.0,0.10356378]
[1740415202083,0.00528501,94755.0,94754.0,0.54606305]
[1740415202294,0.1600038,94755.0,94754.0,0.32031736]
[1740415202517,0.16358745,94755.0,94754.0,0.32031736]
[1740415203252,0.24793479,94755.0,94754.0,0.00091809]
[1740415203476,0.24458745,94755.0,94754.0,0.00091809]
[1740415204309,0.39458745,94755.0,94754.0,0.00091809]
[1740415205296,0.40358745,94755.0,94754.0,0.00091809]
[1740415205809,0.39958745,94755.0,94754.0,0.00091809]
[1740415206220,0.40358745,94755.0,94754.0,0.00091809]
[1740415209777,0.40358745,94755.0,94751.0,0.0004]
[1740415209778,0.308308,94752.0,94751.0,9e-08]
[1740415209962,0.41447531,94752.0,94751.0,9e-08]
[1740415210163,0.41447531,94752.0,94742.0,0.0008498]
[1740415210164,0.308323,94743.0,94742.0,0.00080989]
[1740415210368,0.49757673,94743.0,94742.0,8.9e-07]
[1740415210640,0.55791758,94743.0,94742.0,8.9e-07]
[1740415210942,0.158363,94719.0,94711.0,0.0004]
[1740415211111,0.158363,94719.0,94718.0,0.00032989]
[1740415211334,0.16187538,94719.0,94718.0,0.00032989]
[1740415211510,0.31187538,94719.0,94718.0,0.00032989]
[1740415212482,0.308373,94713.0,94711.0,0.0004]
[1740415212759,0.308373,94713.0,94712.0,0.00128293]
[1740415212962,0.31185266,94713.0,94712.0,0.00128293]
[1740415213158,0.3275868,94713.0,94712.0,0.00128293]
[1740415213616,0.41921358,94713.0,94712.0,0.00128293]
[1740415213838,0.41921358,94713.0,94711.0,9.3e-07]
[1740415213839,0.308374,94712.0,94711.0,9.3e-07]
[1740415214048,0.50146054,94712.0,94711.0,9.3e-07]
[1740415214252,0.158399,94697.0,94679.0,0.0142807]
[1740415214371,0.158399,94697.0,94696.0,0.0009328]
[1740415215411,0.159399,94697.0,94696.0,0.0009328]
[1740415215788,0.160399,94697.0,94696.0,0.0009328]
[1740415217522,0.158399,94697.0,94696.0,0.0009328]
[1740415217912,0.163399,94697.0,94696.0,0.0009328]
[1740415218089,0.160399,94697.0,94696.0,0.0009328]
[1740415218289,0.158399,94697.0,94696.0,0.0009328]
[1740415218640,0.162399,94697.0,94696.0,0.0009328]
[1740415218852,0.2419965,94697.0,94696.0,0.0009328]
[1740415219534,0.2399965,94697.0,94696.0,0.0009328]
[1740415219895,0.160399,94697.0,94696.0,0.0009328]
[1740415220513,0.158399,94697.0,94696.0,0.0009328]
[1740415220920,0.160399,94697.0,94696.0,0.0009328]
[1740415221659,0.161399,94697.0,94696.0,0.0009328]
[1740415222005,0.159399,94697.0,94696.0,0.0009328]
[1740415222217,0.309399,94697.0,94696.0,0.0009328]
[1740415222626,0.41204469,94697.0,94696.0,0.0009328]
[1740415224119,0.41804469,94697.0,94696.0,0.0009328]
[1740415224319,0.41704469,94697.0,94696.0,0.0009328]
[1740415224831,0.314399,94697.0,94696.0,0.0009328]
[1740415225034,0.320399,94697.0,94696.0,0.0009328]
[1740415226669,0.012,94697.0,94696.0,0.0009328]
[1740415226884,0.012,94697.0,94696.0,0.1593338]
[1740415227052,0.012,94697.0,94696.0,0.58285706]
[1740415227263,0.012,94697.0,94696.0,0.65667876]
[1740415227465,0.006,94697.0,94696.0,0.65667876]
[1740415227666,0.0017,94711.0,94708.0,0.15838]
[1740415227870,0.0017,94711.0,94710.0,0.158378]
[1740415228070,0.0017,94711.0,94710.0,0.65420095]
[1740415228268,0.0017,94711.0,94710.0,0.69692296]
[1740415228854,0.0037,94711.0,94710.0,0.69692296]
[1740415229050,0.0027,94711.0,94710.0,0.69692296]
[1740415229737,0.0027,94711.0,94710.0,0.68696296]
[1740415229957,0.0017,94711.0,94710.0,0.68696296]
[1740415230484,0.0037,94711.0,94710.0,0.55254496]
[1740415231634,0.0037,94711.0,94710.0,0.71092296]
[1740415233560,0.0037,94711.0,94710.0,1.24842296]
[1740415237193,0.0037,94711.0,94710.0,1.41296381]
[1740415238327,0.0027,94711.0,94710.0,1.41096381]
[1740415238619,0.0037,94711.0,94710.0,1.41196381]
[1740415239371,0.0017,94711.0,94710.0,1.40696381]
[1740415239534,0.0027,94711.0,94710.0,1.41396381]
[1740415239933,0.0027,94711.0,94710.0,1.45396381]
[1740415240295,0.0017,94711.0,94710.0,1.44696381]
[1740415240420,0.0027,94711.0,94710.0,1.45396381]
[1740415240622,0.0037,94711.0,94710.0,1.45996381]
[1740415240874,0.0027,94711.0,94710.0,1.45296381]
[1740415241050,0.0017,94711.0,94710.0,1.44696381]
[1740415241252,0.0027,94711.0,94710.0,1.46096381]
[1740415242054,1e-06,94711.0,94710.0,1.57226381]
[1740415242258,0.00012069,94740.0,94739.0,0.236929]
[1740415242494,0.00012069,94740.0,94739.0,1.19647396]
[1740415243514,0.00055249,94740.0,94739.0,1.20147396]
[1740415244066,0.00055249,94740.0,94739.0,1.04714496]
[1740415244303,0.00055249,94740.0,94739.0,0.96854496]
[1740415245120,0.00762954,94740.0,94739.0,0.96854496]
[1740415245348,0.00055249,94740.0,94739.0,0.96854496]
[1740415245549,0.00055249,94740.0,94739.0,0.43104496]
[1740415245744,0.00225269,94740.0,94739.0,0.43104496]
[1740415246081,0.00932992,94740.0,94739.0,0.43104496]
[1740415246708,0.00225269,94740.0,94739.0,0.43104496]
[1740415246910,0.00225269,94740.0,94739.0,0.58937396]
[1740415247315,0.00225269,94740.0,94739.0,0.43104496]
[1740415248788,0.00840236,94740.0,94739.0,0.43104496]
[1740415249224,0.16058069,94740.0,94739.0,0.43104496]
[1740415249429,0.16673036,94740.0,94739.0,0.43104496]
[1740415249836,0.16673036,94740.0,94739.0,0.32839927]
[1740415250525,0.2546022,94740.0,94739.0,0.32839927]
[1740415250731,0.3033022,94740.0,94739.0,0.32339927]
[1740415250934,0.1449742,94740.0,94711.0,0.31939927]
[1740415251118,0.158374,94712.0,94711.0,0.31939927]
[1740415251531,0.16446144,94712.0,94711.0,0.31939927]
[1740415251949,0.00608744,94712.0,94711.0,0.31939927]
[1740415252355,0.158374,94712.0,94711.0,0.31939927]
[1740415252567,0.16444654,94712.0,94711.0,0.31939927]
[1740415252773,0.00607254,94712.0,94711.0,0.31939927]
[1740415253115,0.158374,94712.0,94711.0,0.31939927]
[1740415253324,0.00607254,94712.0,94711.0,0.32239927]
[1740415253935,0.158374,94713.0,94711.0,0.32239927]
[1740415254107,0.01512932,94715.0,94711.0,0.31939927]
[1740415254366,0.211138,94725.0,94711.0,0.32439927]
[1740415254367,0.00607254,94712.0,94711.0,0.32439927]
[1740415254569,0.01450612,94725.0,94711.0,0.32939927]
[1740415254743,0.16444654,94712.0,94711.0,0.32439927]
[1740415254962,0.158374,94713.0,94711.0,0.32939927]
[1740415255160,0.16444654,94712.0,94711.0,0.32939927]
[1740415255351,0.16444654,94712.0,94711.0,0.32439927]
[1740415255553,0.16444654,94712.0,94711.0,0.32339927]
[1740415255754,0.16544654,94712.0,94711.0,0.32939927]
[1740415256258,0.16544654,94712.0,94711.0,0.32339927]
[1740415256259,0.16444654,94712.0,94711.0,0.32339927]
[1740415256617,0.16444654,94712.0,94711.0,0.32839927]
[1740415256826,0.16444654,94712.0,94711.0,0.32439927]
[1740415257026,0.00607254,94712.0,94711.0,0.32239927]
[1740415257410,0.0151736,94725.0,94711.0,0.42604496]
[1740415257590,0.00605704,94712.0,94711.0,0.32339927]
[1740415257741,0.158366,94718.0,94711.0,0.32639927]
[1740415257950,0.00605704,94712.0,94711.0,0.32639927]
[1740415258260,0.158369,94716.0,94711.0,0.32639927]
[1740415258463,0.00606365,94715.0,94712.0,0.10264569]
[1740415259122,0.211124,94731.0,94712.0,0.10264569]
[1740415259323,0.00606145,94714.0,94713.0,0.31939927]
[1740415259531,0.158362,94720.0,94713.0,0.42204496]
[1740415259740,0.158362,94720.0,94714.0,0.10264569]
[1740415259941,0.00607247,94719.0,94714.0,0.10264569]
[1740415260187,0.00607247,94719.0,94715.0,0.158368]
[1740415260357,0.01497886,94732.0,94716.0,0.10264569]
[1740415260577,0.211106,94739.0,94717.0,0.0816]
[1740415260910,0.158346,94730.0,94718.0,0.10264569]
[1740415261043,0.00609668,94738.0,94718.0,0.10264569]
[1740415261269,0.158345,94730.0,94718.0,0.26100969]
[1740415261525,0.01518268,94739.0,94718.0,0.10264569]
[1740415261526,0.00607685,94729.0,94718.0,0.10264569]
[1740415261732,0.00607685,94729.0,94728.0,0.158348]
[1740415261938,0.00225269,94740.0,94728.0,0.10264569]
[1740415262139,0.01707267,94740.0,94729.0,0.1041234]
[1740415262383,0.158329,94739.0,94729.0,0.10264569]
[1740415262594,0.00225269,94740.0,94730.0,0.31939927]
[1740415262792,0.00225269,94740.0,94731.0,0.10412327]
[1740415263113,0.00225269,94740.0,94732.0,0.31939927]
[1740415263323,0.00425269,94740.0,94733.0,0.10264569]
[1740415263529,0.00425269,94740.0,94739.0,0.158329]
[1740415263672,0.00225269,94740.0,94739.0,0.33777469]
[1740415264831,0.00325269,94740.0,94739.0,1.20167396]
[1740415265043,0.00325269,94740.0,94739.0,1.35167396]
[1740415265217,0.00325269,94740.0,94739.0,1.42875263]
[1740415265625,0.00425269,94740.0,94739.0,1.43575263]
[1740415266025,0.00425269,94740.0,94739.0,1.45575263]
[1740415266229,0.00425269,94740.0,94739.0,1.47575263]
[1740415266957,0.00325269,94740.0,94739.0,1.46175263]
[1740415267156,0.00325269,94740.0,94739.0,1.46875263]
[1740415267372,6.9e-07,94740.0,94739.0,1.47575263]
[1740415268230,0.01666667,94744.0,94743.0,0.426523]
[1740415268433,0.01679613,94744.0,94743.0,0.54370954]
[1740415270123,0.01679613,94744.0,94743.0,0.55070954]
[1740415270326,0.001701,94792.0,94768.0,0.02]
[1740415270531,0.001701,94792.0,94791.0,0.158242]
[1740415270723,0.00183086,94792.0,94791.0,0.58028696]
[1740415271514,0.00183086,94792.0,94791.0,1.11778696]
[1740415272708,0.00183086,94792.0,94791.0,1.12478696]
[1740415273029,0.00183086,94792.0,94791.0,0.96654496]
[1740415273235,0.00183086,94792.0,94791.0,0.97354496]
[1740415273878,0.16007186,94792.0,94791.0,0.97354496]
[1740415274095,0.16642472,94792.0,94791.0,0.87089927]
[1740415274472,0.16642472,94792.0,94791.0,0.86389927]
[1740415274633,0.16642472,94792.0,94791.0,0.85689927]
[1740415274849,0.18112077,94792.0,94791.0,0.006]
[1740415275056,0.18112077,94792.0,94791.0,0.013]
[1740415275491,0.18112077,94792.0,94791.0,0.006]
[1740415275666,0.18112077,94792.0,94791.0,0.008]
[1740415276045,0.02287977,94792.0,94768.0,0.15828]
[1740415276250,0.02287977,94792.0,94791.0,0.001]
[1740415276428,0.17476791,94792.0,94791.0,0.003]
[1740415276653,0.386881,94768.0,94767.0,0.31939927]
[1740415276861,0.0498,94764.0,94746.0,0.01481846]
[1740415277086,0.00621303,94763.0,94747.0,0.10264569]
[1740415277648,0.02092156,94763.0,94747.0,0.10264569]
[1740415277894,0.02092156,94763.0,94746.0,0.32339927]
[1740415278097,0.158316,94747.0,94746.0,0.32339927]
[1740415278295,0.1645291,94747.0,94746.0,0.32339927]
[1740415279185,0.1645291,94747.0,94746.0,0.31939927]
[1740415279971,0.1645291,94747.0,94746.0,0.32339927]
[1740415280413,0.1645291,94747.0,94746.0,0.31939927]
[1740415280619,0.1645291,94747.0,94746.0,0.32439927]
[1740415280820,0.1645291,94747.0,94746.0,0.31939927]
[1740415281141,0.1645291,94747.0,94746.0,0.32339927]
[1740415281556,0.32795433,94747.0,94746.0,0.01]
[1740415281772,0.3971291,94747.0,94746.0,0.01]
[1740415281936,0.3971291,94747.0,94746.0,0.004]
[1740415282356,0.3971291,94747.0,94746.0,0.009]
[1740415282731,0.54537479,94747.0,94746.0,0.004]
[1740415282915,0.55991564,94747.0,94746.0,0.0008493]
[1740415283124,0.55991564,94747.0,94746.0,0.0048493]
[1740415283487,0.55991564,94747.0,94746.0,0.0008493]
[1740415283848,0.56091564,94747.0,94746.0,0.0008493]
[1740415284049,0.55991564,94747.0,94746.0,0.0008493]
[1740415284287,0.56091564,94747.0,94746.0,0.0018493]
[1740415284834,0.56191564,94747.0,94746.0,0.0018493]
[1740415285192,0.55991564,94747.0,94746.0,0.0008493]
[1740415285601,0.56191564,94747.0,94746.0,0.0018493]
[1740415286718,0.56691564,94747.0,94746.0,0.0018493]
[1740415293871,0.41070254,94747.0,94746.0,0.0018493]
[1740415294122,0.41609112,94747.0,94746.0,0.0018493]
[1740415298419,0.17070458,94747.0,94746.0,0.0018493]
[1740415298633,0.01238858,94747.0,94746.0,0.0018493]
[1740415299053,0.17070458,94747.0,94746.0,0.0018493]
[1740415299530,0.16570458,94747.0,94746.0,0.0018493]
[1740415299933,0.17070458,94747.0,94746.0,0.0018493]
[1740415300129,0.17070458,94747.0,94746.0,0.0008493]
[1740415300130,0.16370458,94747.0,94746.0,0.0008493]
[1740415300958,0.21010458,94747.0,94746.0,0.0008493]
[1740415301186,0.31275027,94747.0,94746.0,0.0008493]
[1740415301333,0.32729112,94747.0,94746.0,0.0008493]
[1740415301532,0.47729112,94747.0,94746.0,0.0008493]
[1740415301750,0.47729112,94747.0,94746.0,3e-07]
[1740415302464,0.49729112,94747.0,94746.0,3e-07]
[1740415302845,0.70014673,94747.0,94746.0,3e-07]
[1740415303054,0.70014673,94747.0,94724.0,0.0008499]
[1740415303055,0.239353,94725.0,94724.0,0.0008499]
[1740415303391,0.24377647,94725.0,94724.0,0.0012817]
[1740415303974,0.16277647,94725.0,94724.0,0.0012817]
[1740415304527,0.16277647,94725.0,94724.0,0.0022817]
[1740415304939,0.16277647,94725.0,94724.0,0.0032817]
[1740415306221,0.00442347,94725.0,94724.0,0.10592739]
[1740415306403,0.158353,94725.0,94724.0,0.10592739]
[1740415306861,0.16278672,94725.0,94724.0,0.10592739]
[1740415307038,0.0038795,94725.0,94724.0,0.10592739]
[1740415307800,0.0038795,94725.0,94724.0,0.26428139]
[1740415308208,0.211038,94770.0,94724.0,0.96282666]
[1740415308485,0.0791,94775.0,94737.0,0.0767]
[1740415308691,0.158304,94755.0,94746.0,0.158317]
[1740415308894,0.00804436,94771.0,94747.0,0.10264569]
[1740415309096,0.158313,94749.0,94747.0,0.10264569]
[1740415309301,0.211073,94754.0,94747.0,0.10264569]
[1740415309471,0.158307,94753.0,94747.0,0.10264569]
[1740415310620,0.211065,94758.0,94747.0,0.10264569]
[1740415310873,0.158305,94754.0,94747.0,0.26096069]
[1740415311284,0.002,94753.0,94747.0,0.10264569]
[1740415311806,0.211068,94756.0,94747.0,0.26095969]
[1740415312021,0.158305,94754.0,94747.0,0.10264569]
[1740415312217,0.158307,94753.0,94747.0,0.10264569]
[1740415312545,0.002,94758.0,94747.0,0.10264569]
[1740415312814,0.158306,94753.0,94747.0,0.10264569]
[1740415313033,0.158307,94753.0,94747.0,0.10264569]
[1740415313244,0.002,94758.0,94747.0,0.10264569]
[1740415313514,0.211062,94759.0,94747.0,0.10264569]
[1740415313720,0.158304,94754.0,94747.0,0.26095969]
[1740415314079,0.158301,94756.0,94750.0,0.15831]
[1740415314283,0.0188886,94763.0,94747.0,0.10364569]
[1740415315339,0.0188886,94763.0,94755.0,0.158301]
[1740415315562,0.0138886,94763.0,94747.0,0.10264569]
[1740415315762,0.15,94783.0,94752.0,0.158307]
[1740415315964,0.001,94758.0,94747.0,0.10264569]
[1740415316167,0.001,94758.0,94756.0,0.1583]
[1740415316370,0.001,94758.0,94755.0,0.158302]
[1740415316569,0.001,94758.0,94757.0,0.158299]
[1740415316730,0.001,94758.0,94757.0,0.10264569]
[1740415316932,0.001,94758.0,94750.0,0.31939927]
[1740415317138,0.001,94758.0,94751.0,0.10264569]
[1740415317543,0.001,94758.0,94757.0,0.158299]
[1740415317742,0.001,94758.0,94757.0,0.10264569]
[1740415317967,0.001,94758.0,94757.0,0.08597902]
[1740415318377,0.001,94758.0,94757.0,0.24427802]
[1740415319279,0.4236088,94808.0,94757.0,0.16557902]
[1740415319460,0.0016998,94763.0,94759.0,0.21106]
[1740415319663,0.0016998,94763.0,94760.0,0.42204496]
[1740415319923,0.0016998,94763.0,94760.0,0.31939927]
[1740415320124,0.158292,94762.0,94760.0,0.31939927]
[1740415320369,0.2127538,94763.0,94760.0,0.31939927]
[1740415320545,0.158292,94761.0,94760.0,0.31939927]
[1740415321145,0.158292,94761.0,94760.0,0.32139927]
[1740415321492,0.158292,94761.0,94760.0,0.31939927]
[1740415321651,0.0016998,94763.0,94760.0,0.31939927]
[1740415321850,0.0016998,94763.0,94760.0,0.32039927]
[1740415322053,0.0016998,94763.0,94760.0,0.31939927]
[1740415322431,0.003,94761.0,94760.0,0.60795727]
[1740415322775,0.003,94761.0,94760.0,0.71060296]
[1740415323437,0.003,94761.0,94760.0,0.75760296]
[1740415323635,0.0016998,94763.0,94762.0,0.158291]
[1740415323837,0.0016998,94763.0,94762.0,0.26241374]
[1740415324039,0.0016998,94763.0,94762.0,1.34393596]
[1740415324968,0.0026998,94763.0,94762.0,1.34393596]
[1740415325166,0.0016998,94763.0,94762.0,1.35847681]
[1740415325584,0.0016998,94763.0,94762.0,1.36347681]
[1740415326779,0.0016998,94763.0,94762.0,1.35847681]
[1740415327203,0.0026998,94763.0,94762.0,1.36547681]
[1740415329641,0.0026998,94763.0,94762.0,1.36097596]
[1740415329844,0.0026998,94763.0,94762.0,1.35093596]
[1740415330086,0.0026998,94763.0,94762.0,1.36097596]
[1740415330407,0.0016998,94763.0,94762.0,1.35397596]
[1740415330602,0.0016998,94763.0,94762.0,1.35997596]